[Event "ETCC Women 2013"]
[Site "Warsaw"]
[Date "2013.11.11"]
[Round "4"]
[White "Shvayger, Yuliya"]
[Black "Zhukova, Natalia"]
[Result "1/2-1/2"]
[ECO "C03"]
[WhiteElo "2294"]
[BlackElo "2466"]
[PlyCount "75"]
[EventDate "2013.??.??"]
[EventCountry "POL"]
[WhiteTeam "Israel"]
[BlackTeam "Ukraine"]
[WhiteTeamCountry "ISR"]
[BlackTeamCountry "UKR"]
[TimeControl "40/5400+30:1800+30"]

1. e4 {[%emt 0:00:00]} e6 {[%emt 0:00:00]} 2. d4 {[%emt 0:00:00]} d5 {[%emt 0:
00:00]} 3. Nd2 {[%emt 0:00:22]} a6 {[%emt 0:00:09]} 4. Ngf3 {[%emt 0:00:47]} c5
{[%emt 0:00:15]} 5. exd5 {[%emt 0:00:13]} exd5 {[%emt 0:00:13]} 6. dxc5 {[%emt
0:00:08]} Bxc5 {[%emt 0:00:24]} 7. Nb3 {[%emt 0:00:10]} Bd6 {[%emt 0:10:40]} 8.
Bd3 {[%emt 0:01:53]} Ne7 {[%emt 0:01:12]} 9. O-O {[%emt 0:00:57]} Nbc6 {[%emt
0:00:32]} 10. c3 {[%emt 0:10:53]} Bg4 {[%emt 0:02:27]} 11. h3 {[%emt 0:00:34]}
Bh5 {[%emt 0:00:27]} 12. Be3 {[%emt 0:21:47]} h6 {[%emt 0:10:05]} 13. Be2 {
[%emt 0:12:32]} O-O {[%emt 0:05:31]} 14. Nfd4 {[%emt 0:01:12]} Bg6 {[%emt 0:13:
28]} 15. Nxc6 {[%emt 0:02:28]} bxc6 {[%emt 0:00:30]} 16. Bd3 {[%emt 0:11:09]}
a5 {[%emt 0:14:13]} 17. Bxg6 {[%emt 0:02:08]} Nxg6 {[%emt 0:01:57]} 18. Nd4 {
[%emt 0:03:45]} Bc7 {[%emt 0:06:08]} 19. b3 {[%emt 0:08:28]} Re8 {[%emt 0:04:
01]} 20. Re1 {[%emt 0:01:13]} Qd6 {[%emt 0:06:25]} 21. g3 {[%emt 0:00:11]} Re4
{[%emt 0:01:16]} 22. c4 {[%emt 0:12:33]} dxc4 {[%emt 0:09:04]} 23. Nf3 {[%emt
0:01:48]} Qxd1 {[%emt 0:05:26]} 24. Raxd1 {[%emt 0:00:16]} cxb3 {[%emt 0:00:21]
} 25. axb3 {[%emt 0:00:02]} Rae8 {[%emt 0:02:08]} 26. Kg2 {[%emt 0:00:35]} Rb4
{[%emt 0:01:41]} 27. Rd7 {[%emt 0:00:50]} Bb6 {[%emt 0:04:06]} 28. Bxb6 {[%emt
0:00:42]} Rxe1 {[%emt 0:00:02]} 29. Bxa5 {[%emt 0:00:02]} Ree4 {[%emt 0:00:07]}
30. Bxb4 {[%emt 0:00:09]} Rxb4 {[%emt 0:00:01]} 31. Rc7 {[%emt 0:00:46]} Rxb3 {
[%emt 0:01:29]} 32. Rxc6 {[%emt 0:00:02]} Rb7 {[%emt 0:00:35]} 33. Ra6 {[%emt
0:00:12]} Rd7 {[%emt 0:00:26]} 34. Rb6 {[%emt 0:00:08]} Rc7 {[%emt 0:00:42]}
35. Ra6 {[%emt 0:00:01]} Rd7 {[%emt 0:00:09]} 36. Rb6 {[%emt 0:00:02]} Rc7 {
[%emt 0:00:09]} 37. Ra6 {[%emt 0:00:07]} Rd7 {[%emt 0:00:05]} 38. Rb6 {[%emt 0:
00:04]} 1/2-1/2

[Event "ETCC Women 2013"]
[Site "Warsaw"]
[Date "2013.11.11"]
[Round "4"]
[White "Socko, Monika"]
[Black "Danielian, Elina"]
[Result "1/2-1/2"]
[ECO "B10"]
[WhiteElo "2431"]
[BlackElo "2457"]
[PlyCount "134"]
[EventDate "2013.??.??"]
[EventCountry "POL"]
[WhiteTeam "Polen"]
[BlackTeam "Armenien"]
[WhiteTeamCountry "POL"]
[BlackTeamCountry "ARM"]
[TimeControl "40/5400+30:1800+30"]

1. e4 {[%emt 0:00:00]} c6 {[%emt 0:00:07]} 2. c4 {[%emt 0:00:00]} d5 {[%emt 0:
01:43]} 3. exd5 {[%emt 0:00:00]} cxd5 {[%emt 0:00:04]} 4. cxd5 {[%emt 0:00:00]}
Nf6 {[%emt 0:00:04]} 5. Qa4+ {[%emt 0:00:00]} Nbd7 {[%emt 0:00:04]} 6. Nc3 {
[%emt 0:00:19]} g6 {[%emt 0:00:31]} 7. Nf3 {[%emt 0:00:11]} Bg7 {[%emt 0:00:05]
} 8. Bc4 {[%emt 0:00:19]} O-O {[%emt 0:00:15]} 9. d3 {[%emt 0:00:23]} a6 {
[%emt 0:00:47]} 10. Qa3 {[%emt 0:00:11]} Nb6 {[%emt 0:01:13]} 11. Qb3 {[%emt 0:
00:18]} Bf5 {[%emt 0:02:05]} 12. O-O {[%emt 0:01:08]} Qc7 {[%emt 0:03:52]} 13.
Re1 {[%emt 0:09:04]} Rac8 {[%emt 0:16:21]} 14. Bg5 {[%emt 0:17:30]} h6 {[%emt
0:11:56]} 15. Bh4 {[%emt 0:01:02]} Nxc4 {[%emt 0:00:38]} 16. dxc4 {[%emt 0:00:
23]} Rfe8 {[%emt 0:34:35]} 17. Bg3 {[%emt 0:21:46]} Qxc4 {[%emt 0:01:30]} 18.
Qxb7 {[%emt 0:00:25]} Nd7 {[%emt 0:11:35]} 19. Nd2 {[%emt 0:06:22]} Qd3 {[%emt
0:00:09]} 20. Nde4 {[%emt 0:00:45]} Bxc3 {[%emt 0:08:38]} 21. Nxc3 {[%emt 0:02:
33]} Qc4 {[%emt 0:00:15]} 22. Qa7 {[%emt 0:09:28]} Qb4 {[%emt 0:02:05]} 23. d6
{[%emt 0:01:18]} exd6 {[%emt 0:00:47]} 24. Qxa6 {[%emt 0:00:32]} Qxb2 {[%emt 0:
00:51]} 25. Nd5 {[%emt 0:02:00]} Rxe1+ {[%emt 0:01:33]} 26. Rxe1 {[%emt 0:00:
01]} Rc1 {[%emt 0:00:08]} 27. Rxc1 {[%emt 0:02:09]} Qxc1+ {[%emt 0:00:04]} 28.
Qf1 {[%emt 0:00:02]} Qxf1+ {[%emt 0:01:05]} 29. Kxf1 {[%emt 0:00:01]} Bd3+ {
[%emt 0:00:24]} 30. Ke1 {[%emt 0:00:18]} Bc4 {[%emt 0:00:53]} 31. Nb4 {[%emt 0:
01:18]} d5 {[%emt 0:00:32]} 32. a4 {[%emt 0:00:09]} Nc5 {[%emt 0:00:29]} 33. a5
{[%emt 0:00:05]} f5 {[%emt 0:00:27]} 34. Bd6 {[%emt 0:00:48]} Nb7 {[%emt 0:00:
22]} 35. Bc7 {[%emt 0:00:15]} Nc5 {[%emt 0:00:01]} 36. Kd2 {[%emt 0:01:34]} Kf7
{[%emt 0:01:10]} 37. Bb6 {[%emt 0:00:32]} Na6 {[%emt 0:00:22]} 38. Nc2 {[%emt
0:05:15]} Ke6 {[%emt 0:00:16]} 39. Kc3 {[%emt 0:01:14]} f4 {[%emt 0:00:44]} 40.
Kd4 {[%emt 0:00:00]} g5 {[%emt 0:00:00]} 41. Ne1 {[%emt 0:07:00]} Bf1 {[%emt 0:
11:22]} 42. g3 {[%emt 0:03:29]} fxg3 {[%emt 0:04:47]} 43. fxg3 {[%emt 0:02:25]}
Nb4 {[%emt 0:00:05]} 44. Nf3 {[%emt 0:02:46]} Kf5 {[%emt 0:02:38]} 45. Ne5 {
[%emt 0:05:58]} h5 {[%emt 0:03:28]} 46. Nf7 {[%emt 0:04:26]} Kg4 {[%emt 0:03:
39]} 47. Bc7 {[%emt 0:05:37]} Bg2 {[%emt 0:07:24]} 48. Ke3 {[%emt 0:03:45]} Kf5
{[%emt 0:01:06]} 49. Kf2 {[%emt 0:02:26]} Bh1 {[%emt 0:00:19]} 50. Nd6+ {[%emt
0:02:35]} Ke6 {[%emt 0:00:21]} 51. Nb5 {[%emt 0:00:13]} Nc2 {[%emt 0:01:02]}
52. a6 {[%emt 0:04:47]} d4 {[%emt 0:00:01]} 53. a7 {[%emt 0:02:21]} d3 {[%emt
0:00:26]} 54. Ba5 {[%emt 0:00:06]} Kd7 {[%emt 0:00:49]} 55. Bd2 {[%emt 0:03:36]
} g4 {[%emt 0:00:10]} 56. Bf4 {[%emt 0:00:22]} Bf3 {[%emt 0:00:08]} 57. h4 {
[%emt 0:03:16]} Kc8 {[%emt 0:01:01]} 58. Be3 {[%emt 0:02:12]} Nb4 {[%emt 0:00:
56]} 59. Nd4 {[%emt 0:01:08]} Bd5 {[%emt 0:00:17]} 60. Nf5 {[%emt 0:00:41]} Kb7
{[%emt 0:00:11]} 61. Nd6+ {[%emt 0:00:15]} Kc7 {[%emt 0:00:52]} 62. Nb5+ {
[%emt 0:01:02]} Kb7 {[%emt 0:00:23]} 63. Bd2 {[%emt 0:00:19]} Na6 {[%emt 0:00:
20]} 64. Ke3 {[%emt 0:00:17]} Bc6 {[%emt 0:00:43]} 65. Nd4 {[%emt 0:00:34]} Bd5
{[%emt 0:00:30]} 66. Nb5 {[%emt 0:00:26]} Bc6 {[%emt 0:00:09]} 67. Nd4 {[%emt
0:00:01]} Bd5 {[%emt 0:00:05]} 1/2-1/2

[Event "ETCC Women 2013"]
[Site "Warsaw"]
[Date "2013.11.11"]
[Round "4"]
[White "Wisniowska, Klaudia"]
[Black "Girya, Olga"]
[Result "0-1"]
[ECO "B48"]
[WhiteElo "2153"]
[BlackElo "2447"]
[PlyCount "90"]
[EventDate "2013.??.??"]
[EventCountry "POL"]
[WhiteTeam "Polen"]
[BlackTeam "Russland"]
[WhiteTeamCountry "POL"]
[BlackTeamCountry "RUS"]
[TimeControl "40/5400+30:1800+30"]

1. e4 {[%emt 0:00:00]} c5 {[%emt 0:00:00]} 2. Nf3 {[%emt 0:00:00]} e6 {[%emt 0:
00:00]} 3. d4 {[%emt 0:00:00]} cxd4 {[%emt 0:00:00]} 4. Nxd4 {[%emt 0:00:05]}
Nc6 {[%emt 0:00:06]} 5. Nc3 {[%emt 0:00:22]} Qc7 {[%emt 0:00:16]} 6. Be3 {
[%emt 0:00:26]} a6 {[%emt 0:00:13]} 7. Qd2 {[%emt 0:00:40]} Nf6 {[%emt 0:00:35]
} 8. f3 {[%emt 0:01:12]} Be7 {[%emt 0:00:32]} 9. g4 {[%emt 0:00:47]} b5 {[%emt
0:01:06]} 10. g5 {[%emt 0:01:44]} Nh5 {[%emt 0:05:25]} 11. O-O-O {[%emt 0:00:
16]} Nxd4 {[%emt 0:00:29]} 12. Qxd4 {[%emt 0:05:13]} Bb7 {[%emt 0:02:10]} 13.
Ne2 {[%emt 0:18:25]} Rc8 {[%emt 0:02:41]} 14. Qd3 {[%emt 0:02:15]} d5 {[%emt 0:
03:33]} 15. Bg2 {[%emt 0:05:32]} O-O {[%emt 0:04:20]} 16. e5 {[%emt 0:14:23]}
d4 {[%emt 0:01:38]} 17. Nxd4 {[%emt 0:02:15]} Rfd8 {[%emt 0:12:04]} 18. Kb1 {
[%emt 0:05:20]} Bc5 {[%emt 0:04:46]} 19. Qd2 {[%emt 0:11:33]} Nf4 {[%emt 0:08:
19]} 20. Bxf4 {[%emt 0:04:19]} Rxd4 {[%emt 0:03:22]} 21. Qc1 {[%emt 0:00:45]}
Ra4 {[%emt 0:02:30]} 22. Rd3 {[%emt 0:11:05]} Bd5 {[%emt 0:02:22]} 23. Rxd5 {
[%emt 0:01:39]} exd5 {[%emt 0:00:24]} 24. Bd2 {[%emt 0:06:00]} Qxe5 {[%emt 0:
02:55]} 25. Bh3 {[%emt 0:00:08]} Rd8 {[%emt 0:00:56]} 26. f4 {[%emt 0:00:31]}
Qc7 {[%emt 0:01:29]} 27. Bf5 {[%emt 0:02:46]} b4 {[%emt 0:02:35]} 28. b3 {
[%emt 0:00:43]} Ra3 {[%emt 0:00:36]} 29. Qb2 {[%emt 0:00:40]} Qb6 {[%emt 0:07:
41]} 30. c3 {[%emt 0:00:48]} bxc3 {[%emt 0:03:22]} 31. Bxc3 {[%emt 0:00:14]} d4
{[%emt 0:00:21]} 32. Bd2 {[%emt 0:00:55]} Bb4 {[%emt 0:01:45]} 33. Rd1 {[%emt
0:01:59]} Ra5 {[%emt 0:00:37]} 34. Qc2 {[%emt 0:00:31]} g6 {[%emt 0:01:16]} 35.
Bd3 {[%emt 0:00:04]} Rc5 {[%emt 0:00:57]} 36. Bc4 {[%emt 0:00:16]} Bxd2 {[%emt
0:09:42]} 37. Rxd2 {[%emt 0:00:05]} Rf5 {[%emt 0:01:27]} 38. Qe4 {[%emt 0:00:
28]} Qd6 {[%emt 0:03:26]} 39. Rf2 {[%emt 0:02:37]} d3 {[%emt 0:05:21]} 40. Kc1
{[%emt 0:00:00]} Qc5 {[%emt 0:00:00]} 41. Rd2 {[%emt 0:07:38]} Rd4 {[%emt 0:06:
06]} 42. Qa8+ {[%emt 0:01:44]} Kg7 {[%emt 0:00:10]} 43. Qxa6 {[%emt 0:00:32]}
Rfxf4 {[%emt 0:00:40]} 44. a3 {[%emt 0:09:57]} Rf1+ {[%emt 0:02:40]} 45. Kb2 {
[%emt 0:00:47]} Qe5 {[%emt 0:00:00]} 0-1

[Event "ETCC Women 2013"]
[Site "Warsaw"]
[Date "2013.11.11"]
[Round "4"]
[White "Tsolakidou, Stavroula"]
[Black "Rudolf, Anna"]
[Result "1-0"]
[ECO "C02"]
[WhiteElo "2117"]
[BlackElo "2281"]
[PlyCount "71"]
[EventDate "2013.??.??"]
[EventCountry "POL"]
[WhiteTeam "Griechenland"]
[BlackTeam "Ungarn"]
[WhiteTeamCountry "GRE"]
[BlackTeamCountry "HUN"]
[TimeControl "40/5400+30:1800+30"]

1. e4 {[%emt 0:00:00]} e6 {[%emt 0:00:00]} 2. d4 {[%emt 0:00:00]} d5 {[%emt 0:
00:00]} 3. e5 {[%emt 0:00:00]} c5 {[%emt 0:00:05]} 4. c3 {[%emt 0:00:00]} Nc6 {
[%emt 0:00:20]} 5. Nf3 {[%emt 0:00:14]} Bd7 {[%emt 0:00:29]} 6. Be2 {[%emt 0:
00:17]} Nge7 {[%emt 0:00:20]} 7. Na3 {[%emt 0:00:29]} cxd4 {[%emt 0:00:40]} 8.
cxd4 {[%emt 0:00:22]} Nf5 {[%emt 0:00:36]} 9. Nc2 {[%emt 0:00:46]} Qb6 {[%emt
0:00:49]} 10. O-O {[%emt 0:01:09]} Na5 {[%emt 0:00:54]} 11. Ne3 {[%emt 0:02:08]
} Nxe3 {[%emt 0:01:24]} 12. fxe3 {[%emt 0:00:36]} Be7 {[%emt 0:00:28]} 13. Qe1
{[%emt 0:01:57]} O-O {[%emt 0:08:35]} 14. Bd2 {[%emt 0:01:49]} Nc4 {[%emt 0:03:
17]} 15. Bxc4 {[%emt 0:07:48]} dxc4 {[%emt 0:00:40]} 16. e4 {[%emt 0:01:24]}
Bc6 {[%emt 0:04:36]} 17. Bc3 {[%emt 0:03:01]} Qa6 {[%emt 0:09:59]} 18. Kh1 {
[%emt 0:03:05]} b5 {[%emt 0:01:43]} 19. d5 {[%emt 0:05:25]} exd5 {[%emt 0:05:
07]} 20. Nd4 {[%emt 0:00:14]} Bb7 {[%emt 0:29:37]} 21. Nf5 {[%emt 0:11:50]} Qe6
{[%emt 0:04:00]} 22. Qg3 {[%emt 0:04:37]} g6 {[%emt 0:00:25]} 23. Nd4 {[%emt 0:
04:20]} Qd7 {[%emt 0:11:25]} 24. Rxf7 {[%emt 0:02:53]} Rxf7 {[%emt 0:00:46]}
25. e6 {[%emt 0:00:08]} Qe8 {[%emt 0:01:55]} 26. exf7+ {[%emt 0:00:15]} Qxf7 {
[%emt 0:00:14]} 27. Nf5 {[%emt 0:00:39]} Kf8 {[%emt 0:04:29]} 28. Rf1 {[%emt 0:
02:08]} d4 {[%emt 0:05:02]} 29. Bxd4 {[%emt 0:04:58]} Bxe4 {[%emt 0:00:51]} 30.
Ne3 {[%emt 0:03:35]} Bf5 {[%emt 0:00:28]} 31. Nxf5 {[%emt 0:01:10]} gxf5 {
[%emt 0:00:10]} 32. Qe5 {[%emt 0:00:38]} Ke8 {[%emt 0:04:27]} 33. Rxf5 {[%emt
0:00:57]} Qg6 {[%emt 0:00:13]} 34. Qxb5+ {[%emt 0:00:56]} Kd8 {[%emt 0:00:09]}
35. Rd5+ {[%emt 0:01:10]} Bd6 {[%emt 0:00:34]} 36. Qc6 {[%emt 0:00:58]} 1-0

[Event "ETCC Women 2013"]
[Site "Warsaw"]
[Date "2013.11.11"]
[Round "4"]
[White "Zaksaite, Salomeja"]
[Black "Kachiani-Gersinska, Ketino"]
[Result "0-1"]
[ECO "C88"]
[WhiteElo "2200"]
[BlackElo "2365"]
[PlyCount "60"]
[EventDate "2013.??.??"]
[EventCountry "POL"]
[WhiteTeam "Litauen"]
[BlackTeam "Deutschland"]
[WhiteTeamCountry "LTU"]
[BlackTeamCountry "GER"]
[TimeControl "40/5400+30:1800+30"]

1. e4 e5 2. Nf3 Nc6 3. Bb5 a6 4. Ba4 Nf6 5. O-O Be7 6. Re1 b5 7. Bb3 O-O 8. h3
Bb7 9. d3 d5 10. exd5 Nxd5 11. Nxe5 Nd4 12. Nc3 Nb4 13. Bf4 Nxb3 14. axb3 f6
15. Ng4 f5 16. Ne3 c5 17. Qd2 Qd7 18. Nf1 Nc6 19. Re3 Bf6 20. Rae1 Nd4 21. Be5
Bxe5 22. Rxe5 f4 23. Ne4 f3 24. g4 Ne2+ 25. Kh1 Qd4 26. Re7 Bxe4 27. dxe4 Qxf2
28. Rxg7+ Kh8 29. Rxh7+ Kxh7 30. Qd7+ Kh8 0-1

[Event "ETCC Women 2013"]
[Site "Warsaw"]
[Date "2013.11.11"]
[Round "4"]
[White "Stojanovic, Andjelija"]
[Black "Javakhishvili, Lela"]
[Result "0-1"]
[ECO "A45"]
[WhiteElo "2293"]
[BlackElo "2423"]
[PlyCount "162"]
[EventDate "2013.??.??"]
[EventCountry "POL"]
[WhiteTeam "Serbien"]
[BlackTeam "Georgien"]
[WhiteTeamCountry "SRB"]
[BlackTeamCountry "GEO"]
[TimeControl "40/5400+30:1800+30"]

1. d4 {[%emt 0:00:00]} Nf6 {[%emt 0:00:00]} 2. Bg5 {[%emt 0:00:00]} e6 {[%emt
0:00:00]} 3. e3 {[%emt 0:00:39]} c5 {[%emt 0:00:45]} 4. c3 {[%emt 0:00:28]}
cxd4 {[%emt 0:01:16]} 5. exd4 {[%emt 0:00:39]} b6 {[%emt 0:01:00]} 6. Nd2 {
[%emt 0:05:40]} Bb7 {[%emt 0:00:29]} 7. Ngf3 {[%emt 0:00:30]} Be7 {[%emt 0:00:
18]} 8. Bxf6 {[%emt 0:12:43]} Bxf6 {[%emt 0:01:32]} 9. Bd3 {[%emt 0:03:26]} a6
{[%emt 0:02:50]} 10. Qe2 {[%emt 0:05:19]} Qc7 {[%emt 0:07:28]} 11. O-O-O {
[%emt 0:08:36]} Nc6 {[%emt 0:03:42]} 12. Kb1 {[%emt 0:00:50]} b5 {[%emt 0:01:
25]} 13. Ne4 {[%emt 0:12:25]} Be7 {[%emt 0:06:59]} 14. d5 {[%emt 0:08:48]} exd5
{[%emt 0:07:01]} 15. Nc5 {[%emt 0:01:06]} Bc8 {[%emt 0:06:14]} 16. Bc2 {[%emt
0:09:41]} Qd6 {[%emt 0:07:59]} 17. Nb3 {[%emt 0:08:38]} Bb7 {[%emt 0:10:42]}
18. Nbd4 {[%emt 0:03:08]} g6 {[%emt 0:03:46]} 19. Rhe1 {[%emt 0:03:06]} Nd8 {
[%emt 0:06:41]} 20. Bb3 {[%emt 0:05:18]} Ne6 {[%emt 0:00:49]} 21. Nc2 {[%emt 0:
00:52]} O-O {[%emt 0:13:45]} 22. Nb4 {[%emt 0:01:00]} d4 {[%emt 0:00:06]} 23.
Nxd4 {[%emt 0:00:57]} Qxh2 {[%emt 0:00:58]} 24. Nd5 {[%emt 0:06:58]} Bd8 {
[%emt 0:00:11]} 25. g3 {[%emt 0:00:37]} Qh6 {[%emt 0:02:12]} 26. f4 {[%emt 0:
00:43]} Nc5 {[%emt 0:08:57]} 27. Nf3 {[%emt 0:00:24]} Nxb3 {[%emt 0:00:30]} 28.
axb3 {[%emt 0:00:01]} Qh3 {[%emt 0:00:31]} 29. Ne5 {[%emt 0:01:11]} d6 {[%emt
0:01:29]} 30. Ng4 {[%emt 0:00:36]} Bxd5 {[%emt 0:03:27]} 31. Rxd5 {[%emt 0:00:
09]} Qxg3 {[%emt 0:00:29]} 32. f5 {[%emt 0:00:59]} Bh4 {[%emt 0:00:42]} 33. Rh1
{[%emt 0:00:27]} Rfe8 {[%emt 0:00:58]} 34. Qd1 {[%emt 0:00:11]} Re1 {[%emt 0:
01:05]} 35. Rxe1 {[%emt 0:00:36]} Qxe1 {[%emt 0:00:01]} 36. Qxe1 {[%emt 0:00:
33]} Bxe1 {[%emt 0:00:03]} 37. Rxd6 {[%emt 0:00:05]} h5 {[%emt 0:00:39]} 38.
Nf6+ {[%emt 0:00:59]} Kg7 {[%emt 0:00:26]} 39. Nd5 {[%emt 0:00:30]} h4 {[%emt
0:01:24]} 40. fxg6 {[%emt 0:00:00]} h3 {[%emt 0:00:00]} 41. Rd7 {[%emt 0:02:45]
} h2 {[%emt 0:04:24]} 42. Rxf7+ {[%emt 0:00:10]} Kxg6 {[%emt 0:00:19]} 43. Rf1
{[%emt 0:00:05]} Bg3 {[%emt 0:01:23]} 44. Ne3 {[%emt 0:04:25]} Re8 {[%emt 0:00:
48]} 45. Ng4 {[%emt 0:00:08]} Kg5 {[%emt 0:01:47]} 46. Nxh2 {[%emt 0:00:16]}
Bxh2 {[%emt 0:00:03]} 47. b4 {[%emt 0:01:37]} Bf4 {[%emt 0:02:22]} 48. Rd1 {
[%emt 0:05:07]} Kf5 {[%emt 0:01:11]} 49. Kc2 {[%emt 0:02:38]} Re2+ {[%emt 0:01:
45]} 50. Kb3 {[%emt 0:00:19]} Rh2 {[%emt 0:02:57]} 51. Re1 {[%emt 0:00:57]} Bd2
{[%emt 0:00:20]} 52. Ra1 {[%emt 0:00:35]} Rh6 {[%emt 0:01:28]} 53. Rd1 {[%emt
0:01:46]} Be3 {[%emt 0:00:48]} 54. Rd7 {[%emt 0:01:49]} Bf4 {[%emt 0:03:55]}
55. Rd1 {[%emt 0:01:06]} Ke4 {[%emt 0:00:48]} 56. Re1+ {[%emt 0:00:36]} Kd3 {
[%emt 0:00:45]} 57. Rd1+ {[%emt 0:00:45]} Ke2 {[%emt 0:01:10]} 58. Rd4 {[%emt
0:01:03]} Ke3 {[%emt 0:01:36]} 59. Rd1 {[%emt 0:00:26]} Rd6 {[%emt 0:00:58]}
60. Rh1 {[%emt 0:00:37]} Kd2 {[%emt 0:01:17]} 61. Rf1 {[%emt 0:00:32]} Be3 {
[%emt 0:00:54]} 62. Rh1 {[%emt 0:00:08]} Rh6 {[%emt 0:00:45]} 63. Rf1 {[%emt 0:
00:30]} Ke2 {[%emt 0:00:41]} 64. Rf7 {[%emt 0:00:22]} Kd1 {[%emt 0:01:47]} 65.
Rf1+ {[%emt 0:02:52]} Kd2 {[%emt 0:00:12]} 66. Rf7 {[%emt 0:04:39]} Rd6 {[%emt
0:00:52]} 67. Re7 {[%emt 0:01:59]} Bg5 {[%emt 0:03:23]} 68. Rg7 {[%emt 0:00:17]
} Bf6 {[%emt 0:00:25]} 69. Rg1 {[%emt 0:02:29]} Bh4 {[%emt 0:00:12]} 70. Rg4 {
[%emt 0:01:53]} Be1 {[%emt 0:00:44]} 71. Re4 {[%emt 0:00:01]} Kd1 {[%emt 0:00:
48]} 72. Re8 {[%emt 0:00:12]} Bd2 {[%emt 0:00:34]} 73. Rh8 {[%emt 0:01:07]} Re6
{[%emt 0:00:20]} 74. Rg8 {[%emt 0:02:37]} Be1 {[%emt 0:00:55]} 75. Rg2 {[%emt
0:00:43]} Kc1 {[%emt 0:02:08]} 76. Rg1 {[%emt 0:00:23]} Kb1 {[%emt 0:02:15]}
77. Rh1 {[%emt 0:01:00]} Re2 {[%emt 0:00:51]} 78. Ka3 {[%emt 0:00:03]} Kc2 {
[%emt 0:01:03]} 79. Rh6 {[%emt 0:00:47]} Bd2 {[%emt 0:00:33]} 80. Rxa6 {[%emt
0:00:50]} Bc1 {[%emt 0:00:47]} 81. Ka2 {[%emt 0:00:33]} Bxb2 {[%emt 0:00:09]}
0-1

[Event "ETCC Women 2013"]
[Site "Warsaw"]
[Date "2013.11.11"]
[Round "4"]
[White "Toma, Katarzyna"]
[Black "Nicolas Zapata, Irene"]
[Result "1-0"]
[ECO "B30"]
[WhiteElo "2282"]
[BlackElo "2241"]
[PlyCount "69"]
[EventDate "2013.??.??"]
[EventCountry "POL"]
[WhiteTeam "Polen"]
[BlackTeam "Spanien"]
[WhiteTeamCountry "POL"]
[BlackTeamCountry "ESP"]
[TimeControl "40/5400+30:1800+30"]

1. e4 {[%emt 0:00:00]} c5 {[%emt 0:00:00]} 2. Nf3 {[%emt 0:00:00]} Nc6 {[%emt
0:00:00]} 3. Bb5 {[%emt 0:00:00]} Nf6 {[%emt 0:03:52]} 4. Nc3 {[%emt 0:02:21]}
Nd4 {[%emt 0:02:05]} 5. e5 {[%emt 0:00:20]} Ng8 {[%emt 0:11:22]} 6. O-O {[%emt
0:08:46]} g6 {[%emt 0:04:29]} 7. Bc4 {[%emt 0:05:40]} Nh6 {[%emt 0:03:25]} 8.
d3 {[%emt 0:07:35]} Bg7 {[%emt 0:02:15]} 9. Ne4 {[%emt 0:01:09]} O-O {[%emt 0:
06:17]} 10. c3 {[%emt 0:06:57]} Nxf3+ {[%emt 0:04:24]} 11. Qxf3 {[%emt 0:00:01]
} Nf5 {[%emt 0:01:50]} 12. g4 {[%emt 0:07:03]} d5 {[%emt 0:02:33]} 13. gxf5 {
[%emt 0:11:42]} dxc4 {[%emt 0:02:49]} 14. f6 {[%emt 0:05:25]} exf6 {[%emt 0:00:
27]} 15. exf6 {[%emt 0:00:05]} Bh8 {[%emt 0:00:21]} 16. dxc4 {[%emt 0:06:48]}
Bf5 {[%emt 0:03:51]} 17. Nxc5 {[%emt 0:04:36]} Qxf6 {[%emt 0:09:16]} 18. Be3 {
[%emt 0:02:20]} b6 {[%emt 0:04:07]} 19. Ne4 {[%emt 0:04:46]} Bxe4 {[%emt 0:02:
36]} 20. Qxe4 {[%emt 0:00:07]} Rae8 {[%emt 0:00:36]} 21. Qg2 {[%emt 0:02:39]}
Qf5 {[%emt 0:06:32]} 22. Rad1 {[%emt 0:02:01]} Re4 {[%emt 0:02:58]} 23. Rd5 {
[%emt 0:01:42]} Qe6 {[%emt 0:00:17]} 24. Kh1 {[%emt 0:00:43]} f5 {[%emt 0:06:
47]} 25. Bd4 {[%emt 0:01:52]} Bxd4 {[%emt 0:03:20]} 26. cxd4 {[%emt 0:00:02]}
Re8 {[%emt 0:02:23]} 27. Qf3 {[%emt 0:01:50]} Qf6 {[%emt 0:05:18]} 28. Rd1 {
[%emt 0:02:38]} h5 {[%emt 0:05:10]} 29. h3 {[%emt 0:02:32]} h4 {[%emt 0:00:57]}
30. Kh2 {[%emt 0:02:22]} Re1 {[%emt 0:03:30]} 31. Rxe1 {[%emt 0:00:24]} Rxe1 {
[%emt 0:00:02]} 32. Qf4 {[%emt 0:00:36]} Re2 {[%emt 0:01:13]} 33. Rd7 {[%emt 0:
00:52]} Re7 {[%emt 0:00:49]} 34. Qb8+ {[%emt 0:02:13]} Kh7 {[%emt 0:00:28]} 35.
Qd8 {[%emt 0:01:02]} 1-0

[Event "ETCC Women 2013"]
[Site "Warsaw"]
[Date "2013.11.11"]
[Round "4"]
[White "Stetsko, Lanita"]
[Black "Peng, Zhaoqin"]
[Result "1-0"]
[ECO "C41"]
[WhiteElo "2226"]
[BlackElo "2378"]
[PlyCount "95"]
[EventDate "2013.??.??"]
[EventCountry "POL"]
[WhiteTeam "Weißrussland"]
[BlackTeam "Niederlande"]
[WhiteTeamCountry "BLR"]
[BlackTeamCountry "NED"]
[TimeControl "40/5400+30:1800+30"]

1. e4 {[%emt 0:00:00]} d6 {[%emt 0:00:00]} 2. d4 {[%emt 0:00:00]} Nf6 {[%emt 0:
00:00]} 3. Nc3 {[%emt 0:00:02]} e5 {[%emt 0:00:11]} 4. Nf3 {[%emt 0:00:55]}
Nbd7 {[%emt 0:00:15]} 5. Bc4 {[%emt 0:00:47]} Be7 {[%emt 0:00:25]} 6. O-O {
[%emt 0:00:37]} O-O {[%emt 0:00:08]} 7. a4 {[%emt 0:02:44]} c6 {[%emt 0:01:06]}
8. Re1 {[%emt 0:02:34]} a5 {[%emt 0:00:21]} 9. Ba2 {[%emt 0:03:12]} exd4 {
[%emt 0:01:08]} 10. Nxd4 {[%emt 0:00:21]} Nc5 {[%emt 0:00:22]} 11. h3 {[%emt 0:
07:19]} Qb6 {[%emt 0:13:53]} 12. Bb3 {[%emt 0:24:08]} Nxb3 {[%emt 0:22:36]} 13.
Nxb3 {[%emt 0:01:48]} Nd7 {[%emt 0:05:58]} 14. Be3 {[%emt 0:02:22]} Qc7 {[%emt
0:00:41]} 15. Nd4 {[%emt 0:09:36]} Nc5 {[%emt 0:11:00]} 16. Qh5 {[%emt 0:09:47]
} Bf6 {[%emt 0:01:58]} 17. Rad1 {[%emt 0:01:24]} Bd7 {[%emt 0:02:53]} 18. f4 {
[%emt 0:04:07]} Rfe8 {[%emt 0:04:24]} 19. Bf2 {[%emt 0:03:53]} Rad8 {[%emt 0:
06:54]} 20. Re2 {[%emt 0:08:37]} Ne6 {[%emt 0:04:04]} 21. Nxe6 {[%emt 0:01:24]}
Bxe6 {[%emt 0:00:09]} 22. Qf3 {[%emt 0:00:46]} Bc4 {[%emt 0:05:14]} 23. Ree1 {
[%emt 0:00:23]} Ba6 {[%emt 0:05:09]} 24. Qg3 {[%emt 0:03:01]} b6 {[%emt 0:07:
17]} 25. e5 {[%emt 0:03:26]} dxe5 {[%emt 0:01:11]} 26. Ne4 {[%emt 0:03:14]} Be7
{[%emt 0:00:03]} 27. fxe5 {[%emt 0:01:50]} Rxd1 {[%emt 0:00:46]} 28. Rxd1 {
[%emt 0:00:07]} Rd8 {[%emt 0:00:27]} 29. Nd6 {[%emt 0:02:28]} c5 {[%emt 0:02:
19]} 30. Rd2 {[%emt 0:02:41]} Bc8 {[%emt 0:00:49]} 31. Be3 {[%emt 0:01:01]} Be6
{[%emt 0:00:50]} 32. Bh6 {[%emt 0:00:27]} Bf8 {[%emt 0:01:02]} 33. Bg5 {[%emt
0:00:06]} Rd7 {[%emt 0:00:34]} 34. Ne8 {[%emt 0:00:10]} Qc6 {[%emt 0:01:25]}
35. Nf6+ {[%emt 0:00:34]} Kh8 {[%emt 0:00:09]} 36. Nxd7 {[%emt 0:00:01]} Bxd7 {
[%emt 0:00:06]} 37. Qd3 {[%emt 0:00:59]} Be8 {[%emt 0:00:58]} 38. Qb5 {[%emt 0:
00:57]} h6 {[%emt 0:01:32]} 39. Qxc6 {[%emt 0:00:07]} Bxc6 {[%emt 0:00:01]} 40.
Rd8 {[%emt 0:00:00]} hxg5 {[%emt 0:00:00]} 41. Rxf8+ {[%emt 0:00:22]} Kh7 {
[%emt 0:00:26]} 42. Rxf7 {[%emt 0:00:09]} Bxa4 {[%emt 0:00:46]} 43. b3 {[%emt
0:01:09]} Bc6 {[%emt 0:00:59]} 44. Rc7 {[%emt 0:02:10]} Be4 {[%emt 0:00:31]}
45. c4 {[%emt 0:02:15]} Bc2 {[%emt 0:05:32]} 46. e6 {[%emt 0:04:28]} Kg6 {
[%emt 0:00:15]} 47. Rf7 {[%emt 0:00:19]} Bxb3 {[%emt 0:02:36]} 48. Rf8 {[%emt
0:00:09]} 1-0